bitfinex-derivatives/quotes_BNBF0:USTF0_20250315
["timestamp","ask_amount","ask_price","bid_price","bid_amount"]
[1742032466753,0.30201276,597.98,596.54,0.3352667]
[1742032466955,0.30201276,597.97,596.54,0.3352667]
[1742032467157,0.30201276,597.99,596.54,0.3352667]
[1742032467359,0.30201276,597.98,596.54,0.3352667]
[1742032467553,9.9634368,604.73,596.54,0.3352667]
[1742032467554,0.30201276,598.33,596.54,0.3352667]
[1742032467753,0.30201276,598.32,596.55,0.30763864]
[1742032468058,14.05320609,603.93,596.55,0.30763864]
[1742032468059,0.30201276,598.31,596.55,0.30763864]
[1742032468258,0.30201276,598.33,596.57,0.33524984]
[1742032468559,0.29130236,598.3,596.58,0.30763864]
[1742032468755,0.30201276,598.29,596.6,0.33523298]
[1742032468951,0.30201276,598.29,596.61,0.30763864]
[1742032469157,0.30201276,598.29,596.63,0.33521613]
[1742032470355,0.30180639,598.28,596.63,0.33521613]
[1742032470556,0.30180639,598.29,596.63,0.33521613]
[1742032471561,0.29130968,598.28,596.63,0.33521613]
[1742032471954,0.30180689,598.27,596.63,0.33521613]
[1742032472354,0.30180689,598.27,596.64,0.30762581]
[1742032472554,0.30180689,598.27,596.66,0.33519927]
[1742032474159,0.30180725,598.26,596.66,0.33519927]
[1742032474358,0.30180725,598.27,596.66,0.33519927]
[1742032474558,0.30180725,598.26,596.66,0.33519927]
[1742032474759,0.29129993,598.25,596.67,0.30761878]
[1742032474958,0.29129993,598.25,596.69,0.33518242]
[1742032475155,0.30180725,598.24,596.7,0.30761878]
[1742032475360,0.30180725,598.24,596.72,0.33516557]
[1742032477462,0.30180725,598.24,596.73,0.30760839]
[1742032477663,0.29129993,598.23,596.75,0.33514872]
[1742032477863,0.29129993,598.23,596.76,0.30760839]
[1742032478063,0.30180725,598.22,596.78,0.33513187]
[1742032479559,0.29129993,598.23,596.78,0.33513187]
[1742032479865,0.30178328,598.22,596.78,0.33513187]
[1742032480666,0.30178328,598.22,596.79,0.30760186]
[1742032480860,0.30178328,598.22,596.81,0.33511502]
[1742032481663,0.30177423,598.21,596.81,0.33511502]
[1742032481859,0.30177423,598.22,596.81,0.33511502]
[1742032483664,0.30177423,598.21,596.81,0.33511502]
[1742032483868,0.30177423,598.66,596.81,0.33511502]
[1742032484067,0.63585925,598.65,596.81,0.33511502]
[1742032484268,0.63586483,598.64,596.81,0.33511502]
[1742032484570,0.63587041,598.63,596.81,0.33511502]
[1742032484767,0.63587599,598.62,596.81,0.33511502]
[1742032485067,0.63588157,598.61,596.81,0.33511502]
[1742032485267,0.63590225,598.6,596.81,0.33511502]
[1742032485460,0.63590783,598.59,596.81,0.33511502]
[1742032485663,0.63591341,598.58,596.81,0.33511502]
[1742032485966,0.63591899,598.57,596.81,0.33511502]
[1742032486170,0.63592457,598.56,596.81,0.33511502]
[1742032486364,0.63593016,598.55,596.81,0.33511502]
[1742032486564,0.63593574,598.54,596.81,0.33511502]
[1742032486767,0.63594132,598.53,596.81,0.33511502]
[1742032486965,0.6359469,598.52,596.81,0.33511502]
[1742032487162,0.63595249,598.51,596.81,0.33511502]
[1742032487468,0.30178932,598.5,596.81,0.33511502]
[1742032487665,0.63596365,598.49,596.81,0.33511502]
[1742032487866,0.63596924,598.48,596.81,0.33511502]
[1742032488064,0.63597482,598.47,596.81,0.33511502]
[1742032488264,0.63598041,598.46,596.81,0.33511502]
[1742032488468,0.63598599,598.45,596.81,0.33511502]
[1742032488668,0.63599157,598.44,596.81,0.33511502]
[1742032488865,0.63599716,598.43,596.81,0.33511502]
[1742032489066,0.63600274,598.42,596.81,0.33511502]
[1742032489370,0.63600833,598.41,596.81,0.33511502]
[1742032489671,0.63601391,598.4,596.81,0.33511502]
[1742032489865,0.30178932,598.39,596.81,0.33511502]
[1742032492566,0.29126945,598.38,596.81,0.33511502]
[1742032492769,0.30178932,598.37,596.81,0.33511502]
[1742032493574,0.30178932,598.36,596.81,0.33511502]
[1742032493774,0.30178932,598.35,596.81,0.33511502]
[1742032493975,0.30178932,598.34,596.81,0.33511502]
[1742032494170,0.30178932,598.37,596.81,0.33511502]
[1742032494370,0.3018053,598.36,596.81,0.33511502]
[1742032494574,0.29126945,598.38,596.81,0.33511502]
[1742032494575,0.3018053,598.37,596.81,0.33511502]
[1742032494770,0.3018053,598.36,596.81,0.33511502]
[1742032494976,0.29126945,598.38,596.81,0.33511502]
[1742032495275,0.30180534,598.37,596.81,0.33511502]
[1742032495576,0.30180534,598.36,596.81,0.33511502]
[1742032496375,0.30180534,598.35,596.81,0.33511502]
[1742032496573,0.30180534,598.36,596.81,0.33511502]
[1742032496879,0.30180534,598.35,596.81,0.33511502]
[1742032497074,0.30180534,598.36,596.81,0.33511502]
[1742032497274,0.30180534,598.34,596.81,0.33511502]
[1742032497473,0.30180534,598.33,596.81,0.33511502]
[1742032497674,0.30180534,598.35,596.81,0.33511502]
[1742032498278,0.30180534,598.34,596.81,0.33511502]
[1742032498579,0.30180534,598.33,596.81,0.33511502]
[1742032498781,0.30180534,598.32,596.81,0.33511502]
[1742032498973,0.30180534,598.31,596.81,0.33511502]
[1742032499183,0.30180534,598.3,596.81,0.33511502]
[1742032499375,0.30180534,598.29,596.81,0.33511502]
[1742032499575,0.30180534,598.28,596.81,0.33511502]
[1742032499778,0.30180534,598.27,596.81,0.33511502]
[1742032500079,0.30180534,598.26,596.81,0.33511502]
[1742032500280,0.30180534,598.25,596.81,0.33511502]
[1742032500479,0.30180534,598.24,596.81,0.33511502]
[1742032500680,0.30180534,598.23,596.81,0.33511502]
[1742032500879,0.30180534,598.22,596.81,0.33511502]
[1742032501079,0.30180534,598.21,596.81,0.33511502]
[1742032501380,0.30180534,598.2,596.81,0.33511502]
[1742032501583,0.30180534,598.19,596.81,0.33511502]
[1742032503984,0.30180534,598.18,596.81,0.33511502]
[1742032504184,0.30180534,598.17,596.81,0.33511502]
[1742032504387,0.30180534,598.16,596.81,0.33511502]
[1742032504790,0.30180534,598.15,596.81,0.33511502]
[1742032504989,0.30180534,598.14,596.81,0.33511502]
[1742032505185,0.30180534,598.13,596.81,0.33511502]
[1742032505391,0.30180534,598.12,596.81,0.33511502]
[1742032505687,0.29129505,598.17,596.81,0.33511502]
[1742032505688,0.30180534,598.11,596.81,0.33511502]
[1742032505991,0.30180534,598.1,596.81,0.33511502]
[1742032506184,0.30180534,598.09,596.81,0.33511502]
[1742032506387,0.30180534,598.08,596.82,0.30762613]
[1742032506585,0.30180534,598.16,596.82,0.30762613]
[1742032506785,0.30180534,598.15,596.84,0.33509818]
[1742032506988,0.30180588,598.14,596.84,0.33509818]
[1742032507191,0.30180588,598.13,596.84,0.33509818]
[1742032507394,0.30180588,598.16,596.84,0.33509818]
[1742032507686,0.30180588,598.15,596.84,0.33509818]
[1742032507992,0.30180588,598.14,596.84,0.33509818]
[1742032508290,0.30180588,598.13,596.84,0.33509818]
[1742032508488,0.29129505,598.17,596.84,0.33509818]
[1742032508489,0.30180588,598.16,596.84,0.33509818]
[1742032508684,0.30180588,598.12,596.84,0.33509818]
[1742032508885,0.30180588,598.11,596.84,0.33509818]
[1742032509085,0.30180588,598.16,596.84,0.33509818]
[1742032509391,0.30180588,598.15,596.84,0.33509818]
[1742032509589,0.30180588,598.16,596.84,0.33509818]
[1742032509785,0.30180588,598.14,596.84,0.33509818]
[1742032509990,0.30180588,598.13,596.84,0.33509818]
[1742032510187,0.30180588,598.16,596.84,0.33509818]
[1742032510392,0.30180588,598.15,596.84,0.33509818]
[1742032510594,0.30180588,598.35,596.84,0.33509818]
[1742032510791,0.30180588,598.14,596.84,0.33509818]
[1742032510987,0.30180588,598.13,596.84,0.33509818]
[1742032511187,0.30180588,598.35,596.84,0.33509818]
[1742032511389,0.30180588,598.34,596.84,0.33509818]
[1742032511586,0.30180588,598.33,596.84,0.33509818]
[1742032511790,0.30180588,598.35,596.84,0.33509818]
[1742032511990,0.30180588,598.34,596.84,0.33509818]
[1742032512187,0.30180588,598.33,596.84,0.33509818]
[1742032512392,0.30180588,598.32,596.84,0.33509818]
[1742032512593,0.30179483,598.31,596.84,0.33509818]
[1742032512794,0.30179483,598.32,596.84,0.33509818]
[1742032513093,0.30179483,598.31,596.84,0.33509818]
[1742032513294,0.30179483,598.32,596.84,0.33509818]
[1742032513494,0.30179483,598.3,596.84,0.33509818]
[1742032513687,0.30179483,598.29,596.84,0.33509818]
[1742032513888,0.30179483,598.35,596.84,0.33509818]
[1742032514089,0.30179483,598.34,596.84,0.33509818]
[1742032514293,0.30179483,598.35,596.84,0.33509818]
[1742032514594,0.30179483,598.34,596.84,0.33509818]
[1742032514795,0.30179483,598.33,596.84,0.33509818]
[1742032514994,0.30179483,598.32,596.84,0.33509818]
[1742032515197,0.30179483,598.31,596.84,0.33509818]
[1742032515399,0.30179483,598.3,596.84,0.33509818]
[1742032515695,0.30179483,598.29,596.84,0.33509818]
[1742032515897,0.30179483,598.35,596.84,0.33509818]
[1742032516097,0.30179483,598.34,596.84,0.33509818]
[1742032516397,0.30179483,598.33,596.84,0.33509818]
[1742032516698,0.30179483,598.32,596.84,0.33509818]
[1742032516896,0.30179483,598.31,596.84,0.33509818]
[1742032517099,0.30179483,598.32,596.84,0.33509818]
[1742032517294,0.30179483,598.31,596.84,0.33509818]
[1742032517495,0.30179483,598.3,596.84,0.33509818]
[1742032517695,0.30179483,598.29,596.84,0.33509818]
[1742032517893,0.30179483,598.32,596.84,0.33509818]
[1742032518098,0.30179483,598.31,596.84,0.33509818]
[1742032518293,0.30179483,598.3,596.84,0.33509818]
[1742032518495,0.30179483,598.32,596.84,0.33509818]
[1742032518692,0.29123532,598.33,596.84,0.33509818]
[1742032518693,0.30179483,598.31,596.84,0.33509818]
[1742032518893,0.29123532,598.33,596.84,0.33509818]
[1742032518894,0.30179483,598.3,596.84,0.33509818]
[1742032519099,0.30179483,598.32,596.84,0.33509818]
[1742032519298,0.30179483,598.31,596.84,0.33509818]
[1742032519495,0.30179483,598.3,596.84,0.33509818]
[1742032519799,0.30179483,598.3,596.85,0.30758928]
[1742032519997,0.30179483,598.3,596.84,0.33509818]
[1742032519998,0.30179483,598.3,596.87,0.33508134]
[1742032521000,0.30179483,598.29,596.87,0.33508134]
[1742032521195,0.30179483,598.28,596.87,0.33508134]
[1742032521400,0.30179483,598.3,596.87,0.33508134]
[1742032521599,0.30179483,598.29,596.87,0.33508134]
[1742032521799,0.30179483,598.3,596.87,0.33508134]
[1742032521998,0.30179483,598.29,596.87,0.33508134]
[1742032522198,0.30179483,598.3,596.87,0.33508134]
[1742032522399,0.30179483,598.29,596.87,0.33508134]
[1742032522601,0.29127798,598.28,596.87,0.33508134]
[1742032522802,0.30179483,598.27,596.87,0.33508134]
[1742032524104,0.29127798,598.28,596.87,0.33508134]
[1742032524298,0.30181624,598.27,596.87,0.33508134]
[1742032527105,0.30181624,598.26,596.87,0.33508134]
[1742032527302,0.29127798,598.28,596.87,0.33508134]
[1742032527508,0.30180493,598.27,596.87,0.33508134]
[1742032527709,0.30180493,598.26,596.87,0.33508134]
[1742032527909,0.30180493,598.25,596.87,0.33508134]
[1742032528106,2.56182178,598.22,596.87,0.33508134]
[1742032528311,0.30180493,598.21,596.87,0.33508134]
[1742032528508,0.30180493,598.2,596.87,0.33508134]
[1742032528709,0.30180493,598.19,596.87,0.33508134]
[1742032529014,0.30180493,598.18,596.87,0.33508134]
[1742032529312,2.56182178,598.22,596.87,0.33508134]
[1742032529313,0.30180859,598.17,596.87,0.33508134]
[1742032529507,0.30180859,598.21,596.87,0.33508134]
[1742032529706,0.30180859,598.2,596.87,0.33508134]
[1742032529908,0.30180859,598.19,596.87,0.33508134]
[1742032530107,0.30180859,598.18,596.87,0.33508134]
[1742032530311,0.30180859,598.17,596.87,0.33508134]
[1742032530509,0.30180859,598.27,596.87,0.33508134]
[1742032530710,0.30180859,598.26,596.87,0.33508134]
[1742032531008,0.30180859,598.25,596.87,0.33508134]
[1742032531211,0.30180859,598.24,596.87,0.33508134]
[1742032531408,0.30180859,598.23,596.87,0.33508134]
[1742032531613,0.30180859,598.22,596.87,0.33508134]
[1742032531804,0.30180859,598.21,596.87,0.33508134]
[1742032532008,0.30180859,598.2,596.87,0.33508134]
[1742032532204,0.30180929,598.19,596.87,0.33508134]
[1742032532409,0.30180929,598.23,596.87,0.33508134]
[1742032532609,0.30180929,598.22,596.87,0.33508134]
[1742032532805,0.30180929,598.21,596.87,0.33508134]
[1742032533006,0.30180929,598.2,596.87,0.33508134]
[1742032533206,0.30180929,598.19,596.87,0.33508134]
[1742032533413,0.30180929,598.23,596.87,0.33508134]
[1742032533606,0.30180929,598.22,596.87,0.33508134]
[1742032533805,0.30180929,598.21,596.87,0.33508134]
[1742032534012,0.30180929,598.2,596.87,0.33508134]
[1742032534212,0.30180929,598.19,596.87,0.33508134]
[1742032534405,0.30180929,598.23,596.87,0.33508134]
[1742032534611,0.29128286,598.19,596.87,0.33508134]
[1742032534810,0.30180929,598.18,596.87,0.33508134]
[1742032535010,0.30180929,598.17,596.87,0.33508134]
[1742032535214,0.30180929,598.16,596.87,0.33508134]
[1742032535413,0.30180929,598.18,596.87,0.33508134]
[1742032535606,0.30180929,598.17,596.87,0.33508134]
[1742032535811,0.30180929,598.18,596.87,0.33508134]
[1742032536108,0.30180929,598.17,596.87,0.33508134]
[1742032536309,0.30180929,598.16,596.87,0.33508134]
[1742032536510,0.30180929,598.18,596.87,0.33508134]
[1742032536709,0.30180929,598.17,596.87,0.33508134]
[1742032536912,0.30180929,598.16,596.87,0.33508134]
[1742032537111,0.30180929,598.15,596.87,0.33508134]
[1742032537306,0.30180929,598.14,596.87,0.33508134]
[1742032537507,0.30180929,598.13,596.87,0.33508134]
[1742032537707,0.30180929,598.12,596.87,0.33508134]
[1742032537911,0.30180929,598.11,596.87,0.33508134]
[1742032538307,0.30180929,598.1,596.87,0.33508134]
[1742032538713,0.30180929,598.09,596.87,0.33508134]
[1742032538914,0.30180929,598.08,596.87,0.33508134]
[1742032539110,0.30180929,598.13,596.87,0.33508134]
[1742032539418,0.30180929,598.12,596.87,0.33508134]
[1742032539714,0.30180929,598.11,596.87,0.33508134]
[1742032539915,0.30180929,598.1,596.87,0.33508134]
[1742032540116,0.30180929,598.09,596.87,0.33508134]
[1742032540316,0.30180929,598.08,596.87,0.33508134]
[1742032540717,0.30180929,598.07,596.87,0.33508134]
[1742032540917,0.30180929,598.06,596.87,0.33508134]
[1742032541318,0.30180929,598.05,596.87,0.33508134]
[1742032541617,0.30180929,598.04,596.87,0.33508134]
[1742032541819,0.30180929,598.03,596.87,0.33508134]
[1742032542015,2.56182178,598.09,596.87,0.33508134]
[1742032542219,0.30180929,598.08,596.87,0.33508134]
[1742032542517,0.30180929,598.07,596.87,0.33508134]
[1742032542713,0.30180929,598.06,596.87,0.33508134]
[1742032542919,0.30180929,598.05,596.87,0.33508134]
[1742032543118,0.30180929,598.04,596.87,0.33508134]
[1742032543318,0.30180929,598.03,596.87,0.33508134]
[1742032543716,0.30180929,598.02,596.87,0.33508134]
[1742032543920,0.30180929,598.06,596.87,0.33508134]
[1742032544120,0.30180929,598.05,596.87,0.33508134]
[1742032544321,0.30180929,598.04,596.87,0.33508134]
[1742032544524,0.30180929,598.03,596.87,0.33508134]
[1742032544717,0.30180929,598.02,596.87,0.33508134]
[1742032545021,0.30180929,598.01,596.87,0.33508134]
[1742032545222,0.30180929,598.04,596.87,0.33508134]
[1742032545422,0.30180929,598.03,596.87,0.33508134]
[1742032545717,0.30180929,598.02,596.87,0.33508134]
[1742032545925,0.30182128,598.01,596.87,0.33508134]
[1742032546119,0.30182128,598.0,596.87,0.33508134]
[1742032546324,0.30182128,598.02,596.87,0.33508134]
[1742032546524,0.30182128,598.01,596.87,0.33508134]
[1742032546724,0.30182128,598.02,596.87,0.33508134]
[1742032546924,0.30182128,598.01,596.87,0.33508134]
[1742032547229,0.30182128,598.02,596.87,0.33508134]
[1742032547425,0.30182128,598.01,596.87,0.33508134]
[1742032547721,0.30182128,598.0,596.87,0.33508134]
[1742032547924,2.68993941,598.01,596.87,0.33508134]
[1742032548122,0.30182128,597.99,596.87,0.33508134]
[1742032548426,0.30182128,597.98,596.87,0.33508134]
[1742032548628,0.30182128,598.0,596.87,0.33508134]
[1742032548821,0.30182128,597.99,596.87,0.33508134]
[1742032549024,4.96250182,598.0,596.87,0.33508134]
[1742032549323,0.30182128,597.99,596.87,0.33508134]
[1742032549627,4.96250182,597.99,596.87,0.33508134]
[1742032549821,4.66068054,597.98,596.87,0.33508134]
[1742032550120,4.96249952,597.97,596.87,0.33508134]
[1742032550321,0.30181898,597.96,596.87,0.33508134]
[1742032550524,0.30181898,597.95,596.87,0.33508134]
[1742032550726,0.30181898,598.08,596.87,0.33508134]
[1742032550928,0.30181898,598.07,596.87,0.33508134]
[1742032551226,0.30181898,598.06,596.87,0.33508134]
[1742032551426,0.30181898,598.05,596.87,0.33508134]
[1742032551626,0.30181986,598.04,596.87,0.33508134]
[1742032551826,0.30181986,598.03,596.87,0.33508134]
[1742032552023,0.30181986,598.08,596.87,0.33508134]
[1742032552222,0.30181986,598.07,596.87,0.33508134]
[1742032552429,0.30181986,598.06,596.87,0.33508134]
[1742032552627,0.30181986,598.05,596.87,0.33508134]
[1742032552827,0.30181986,598.04,596.87,0.33508134]
[1742032553028,0.30181986,598.03,596.87,0.33508134]
[1742032553223,0.30181986,598.07,596.87,0.33508134]
[1742032553430,2.56182178,598.08,596.87,0.33508134]
[1742032553631,0.30181749,598.06,596.87,0.33508134]
[1742032553829,0.30181749,598.05,596.87,0.33508134]
[1742032554224,0.30181749,598.04,596.87,0.33508134]
[1742032554424,0.30181749,598.03,596.87,0.33508134]
[1742032554622,0.30181749,598.02,596.87,0.33508134]
[1742032554827,7.36547407,598.06,596.87,0.33508134]
[1742032555133,5.25316921,598.05,596.87,0.33508134]
[1742032555330,4.97594413,598.04,596.87,0.33508134]
[1742032555525,2.69134743,598.03,596.87,0.33508134]
[1742032555731,0.30181749,598.02,596.87,0.33508134]
[1742032556132,0.30181749,598.04,596.87,0.33508134]
[1742032556930,2.56182178,598.03,596.87,0.33508134]
[1742032557131,0.30181749,598.02,596.87,0.33508134]
[1742032558534,0.29130846,598.11,596.87,0.33508134]
[1742032558831,0.30181749,598.1,596.87,0.33508134]
[1742032560832,0.30181821,598.09,596.87,0.33508134]
[1742032561037,4.97578434,598.1,596.87,0.33508134]
[1742032561235,0.30181821,598.08,596.87,0.33508134]
[1742032561435,2.38944445,598.09,596.87,0.33508134]
[1742032561635,0.30181821,598.08,596.87,0.33508134]
[1742032562442,0.30181925,598.07,596.87,0.33508134]
[1742032562636,0.30181925,598.08,596.87,0.33508134]
[1742032562841,0.30181925,598.07,596.87,0.33508134]
[1742032563041,0.30181925,598.06,596.87,0.33508134]
[1742032563244,0.30181925,598.08,596.87,0.33508134]
[1742032563435,0.30181925,598.05,596.87,0.33508134]
[1742032563640,0.30181925,598.04,596.87,0.33508134]
[1742032563942,0.30181925,598.03,596.87,0.33508134]
[1742032564139,0.30181925,598.25,596.87,0.33508134]
[1742032564344,0.30181925,598.24,596.87,0.33508134]
[1742032564546,0.30181925,598.23,596.87,0.33508134]
[1742032564846,0.30181925,598.22,596.87,0.33508134]
[1742032565146,0.30181925,598.21,596.87,0.33508134]
[1742032565347,0.30181925,598.25,596.87,0.33508134]
[1742032565545,0.30181925,598.24,596.87,0.33508134]
[1742032565745,0.30181925,598.23,596.87,0.33508134]
[1742032565944,0.30181925,598.22,596.87,0.33508134]
[1742032566141,0.30181925,598.21,596.87,0.33508134]
[1742032566346,0.30181925,598.2,596.87,0.33508134]
[1742032566645,0.30181925,598.19,596.87,0.33508134]
[1742032566846,0.30181925,598.22,596.87,0.33508134]
[1742032567042,0.30181925,598.21,596.87,0.33508134]
[1742032567247,0.30181925,598.22,596.87,0.33508134]
[1742032567442,0.30181925,598.21,596.87,0.33508134]
[1742032567643,0.30181925,598.22,596.87,0.33508134]
[1742032567849,2.56182178,598.22,596.87,0.33508134]
[1742032568042,0.30181937,598.21,596.87,0.33508134]
[1742032569844,0.30181937,598.35,596.87,0.33508134]
[1742032570044,0.30181937,598.2,596.87,0.33508134]
[1742032570242,0.30181937,598.19,596.87,0.33508134]
[1742032570644,0.30181937,598.18,596.87,0.33508134]
[1742032570848,0.30181937,598.17,596.87,0.33508134]
[1742032571048,0.30181937,598.35,596.87,0.33508134]
[1742032571349,0.30181937,598.34,596.87,0.33508134]
[1742032571545,0.30181937,598.33,596.87,0.33508134]
[1742032571750,0.30181931,598.32,596.87,0.33508134]
[1742032571945,0.30181931,598.31,596.87,0.33508134]
[1742032572147,0.30181931,598.35,596.87,0.33508134]
[1742032572451,0.30181931,598.34,596.87,0.33508134]
[1742032572651,0.30181931,598.33,596.87,0.33508134]
[1742032572852,0.30181931,598.32,596.87,0.33508134]
[1742032573053,7.06318815,598.34,596.87,0.33508134]
[1742032573054,0.30181931,598.31,596.87,0.33508134]
[1742032573354,0.30181931,598.3,596.87,0.33508134]
[1742032573548,0.30181931,598.32,596.87,0.33508134]
[1742032573746,0.30183723,598.31,596.87,0.33508134]
[1742032573949,0.30183723,598.34,596.87,0.33508134]
[1742032574249,0.3342637,598.33,596.87,0.33508134]
[1742032574457,0.30183723,598.32,596.87,0.33508134]
[1742032574654,0.63610651,598.32,596.87,0.33508134]
[1742032574954,0.30183723,598.31,596.87,0.33508134]
[1742032579250,0.33426928,598.32,596.87,0.33508134]
[1742032579452,0.30184601,598.31,596.87,0.33508134]
[1742032582457,0.29128773,598.3,596.87,0.33508134]
[1742032582652,0.30184601,598.29,596.87,0.33508134]
[1742032582853,0.29128773,598.3,596.87,0.33508134]
[1742032583048,0.30184534,598.29,596.87,0.33508134]
[1742032583656,0.30184534,598.28,596.87,0.33508134]
[1742032583851,0.30184534,598.27,596.87,0.33508134]
[1742032584050,0.30184534,598.26,596.87,0.33508134]
[1742032584253,0.30184534,598.25,596.87,0.33508134]
[1742032584455,0.30184534,598.24,596.87,0.33508134]
[1742032584650,0.30184534,598.23,596.87,0.33508134]
[1742032584856,0.29128773,598.3,596.87,0.33508134]
[1742032584857,0.30184534,598.22,596.87,0.33508134]
[1742032585257,0.29128773,598.3,596.87,0.33508134]
[1742032585258,0.30184534,598.21,596.87,0.33508134]
[1742032585458,0.33426928,598.32,596.87,0.33508134]
[1742032585653,0.30184251,598.31,596.87,0.33508134]
[1742032585856,0.29129017,598.2,596.87,0.33508134]
[1742032586159,0.30184251,598.19,596.87,0.33508134]
[1742032586359,0.30184251,598.18,596.87,0.33508134]
[1742032586560,2.56182178,598.06,596.87,0.33508134]
[1742032586961,0.30184199,598.05,596.87,0.33508134]
[1742032587161,0.30184199,598.04,596.87,0.33508134]
[1742032587361,0.30184199,598.03,596.87,0.33508134]
[1742032587562,0.30184199,598.05,596.87,0.33508134]
[1742032587861,2.56182178,598.06,596.87,0.33508134]
[1742032587862,0.30184199,598.04,596.87,0.33508134]
[1742032588056,0.30184199,598.03,596.87,0.33508134]
[1742032588259,0.30184199,598.05,596.87,0.33508134]
[1742032588455,0.30184199,598.04,596.87,0.33508134]
[1742032588857,0.30184199,598.03,596.87,0.33508134]
[1742032589061,0.30184199,598.04,596.87,0.33508134]
[1742032589363,0.30184199,598.03,596.87,0.33508134]
[1742032589559,0.30184199,598.04,596.87,0.33508134]
[1742032589763,0.30184199,598.03,596.87,0.33508134]
[1742032589959,0.30184199,598.02,596.87,0.33508134]
[1742032590167,0.30184199,598.01,596.87,0.33508134]
[1742032590361,0.30184199,598.04,596.87,0.33508134]
[1742032590561,0.30184199,598.03,596.87,0.33508134]
[1742032590759,0.29131943,598.05,596.87,0.33508134]
[1742032590760,0.30184199,598.04,596.87,0.33508134]
[1742032590965,0.30184199,598.03,596.87,0.33508134]
[1742032591264,0.30184199,598.02,596.87,0.33508134]
[1742032591461,0.30184199,598.04,596.87,0.33508134]
[1742032591664,0.30184199,598.03,596.87,0.33508134]
[1742032591866,0.30184199,598.04,596.87,0.33508134]
[1742032594575,0.29132065,598.05,596.87,0.33508134]
[1742032594773,0.30184199,598.04,596.87,0.33508134]
[1742032597674,0.30184199,598.03,596.87,0.33508134]
[1742032597876,0.30184199,598.04,596.87,0.33508134]
[1742032598171,0.29132065,598.05,596.87,0.33508134]
[1742032598172,0.30184516,598.03,596.87,0.33508134]
[1742032598370,0.30184516,598.04,596.87,0.33508134]
[1742032598572,0.30184516,598.03,596.87,0.33508134]
[1742032598773,0.30184516,598.04,596.87,0.33508134]
[1742032598968,0.30184516,598.03,596.87,0.33508134]
[1742032599170,0.30184516,598.02,596.87,0.33508134]
[1742032599474,0.30184516,598.01,596.87,0.33508134]
[1742032599675,0.30184516,598.04,596.87,0.33508134]
[1742032599871,0.29132065,598.05,596.87,0.33508134]
[1742032600072,0.30184124,598.04,596.87,0.33508134]
[1742032600770,0.30184124,598.03,596.87,0.33508134]
[1742032600971,0.30184124,598.31,596.87,0.33508134]
[1742032601170,0.30184124,598.3,596.87,0.33508134]
[1742032601374,0.33428604,598.29,596.87,0.33508134]
[1742032601579,0.30184124,598.28,596.87,0.33508134]
[1742032601772,0.33429163,598.28,596.87,0.33508134]
[1742032601973,0.30184498,598.27,596.87,0.33508134]
[1742032602276,0.59314613,598.27,596.87,0.33508134]
[1742032602678,0.30184498,598.26,596.87,0.33508134]
[1742032603578,0.29130358,598.25,596.87,0.33508134]
[1742032603777,0.30184498,598.24,596.87,0.33508134]
[1742032605476,0.30183499,598.23,596.87,0.33508134]
[1742032605775,0.30183499,598.22,596.87,0.33508134]
[1742032605980,0.30183499,598.21,596.87,0.33508134]
[1742032606280,0.30183499,598.2,596.87,0.33508134]
[1742032606481,0.30183499,598.24,596.87,0.33508134]
[1742032606779,0.29129627,598.19,596.87,0.33508134]
[1742032606979,0.30183499,598.18,596.87,0.33508134]
[1742032607282,0.30183816,598.17,596.87,0.33508134]
[1742032607473,0.30183816,598.18,596.87,0.33508134]
[1742032607676,0.30183816,598.17,596.87,0.33508134]
[1742032608075,0.30183816,598.16,596.87,0.33508134]
[1742032608380,0.30183816,598.18,596.87,0.33508134]
[1742032608577,0.30183816,598.17,596.87,0.33508134]
[1742032608774,0.30183816,598.18,596.87,0.33508134]
[1742032608974,0.30183816,598.17,596.87,0.33508134]
[1742032609180,0.30183816,598.18,596.87,0.33508134]
[1742032609377,0.30183816,598.17,596.87,0.33508134]
[1742032609583,0.29130358,598.17,596.87,0.33508134]
[1742032609782,0.30183816,598.16,596.87,0.33508134]
[1742032612682,0.59314418,598.15,596.87,0.33508134]
[1742032612875,0.30183796,598.14,596.87,0.33508134]
[1742032615785,0.59314154,598.13,596.87,0.33508134]
[1742032616179,0.30183796,598.12,596.87,0.33508134]
[1742032617582,0.30183796,598.11,596.87,0.33508134]
[1742032617782,0.30183796,598.1,596.87,0.33508134]
[1742032617985,0.30183796,598.12,596.87,0.33508134]
[1742032618282,0.30183812,598.11,596.87,0.33508134]
[1742032618693,0.30183812,598.1,596.87,0.33508134]
[1742032618891,0.30183812,598.09,596.87,0.33508134]
[1742032619090,0.30183812,598.08,596.87,0.33508134]
[1742032619292,0.30183812,598.14,596.87,0.33508134]
[1742032619489,0.30183812,598.13,596.87,0.33508134]
[1742032619689,7.36801583,598.14,596.87,0.33508134]
[1742032619896,2.69225191,598.13,596.87,0.33508134]
[1742032620096,0.30183812,598.12,596.87,0.33508134]
[1742032620292,0.30183761,598.11,596.87,0.33508134]
[1742032620493,0.30183761,598.12,596.87,0.33508134]
[1742032620692,0.30183761,598.1,596.87,0.33508134]
[1742032620899,0.30183761,598.09,596.87,0.33508134]
[1742032621092,0.30183761,598.1,596.87,0.33508134]
[1742032621291,0.30183761,598.09,596.87,0.33508134]
[1742032621498,0.3018347,598.08,596.87,0.33508134]
[1742032621698,0.3018347,598.1,596.87,0.33508134]